{"text_format":"1","workbook":"xlsx","n_sheets":7,"sheets":["الخلاصة ","Names","lists","المنقولين ","ورقة1","MS","ورقة3"],"not_rendered":{"charts":0,"images":0,"macros":1,"external_links":0,"defined_names":5,"comments":0,"pivot_tables":0},"unopened":[],"bounds":{"document_bytes":16777216,"sheet_cells":100000,"rows_first":2000,"rows_last":500,"rows_between":2000,"halvings":0,"cell_chars":16384,"cell_head_chars":4096},"cells_cut":0,"cells_raw":0,"read":"whole","date_system":"1900"}

{"sheet":"الخلاصة ","index":0,"n_rows":39,"n_cols":8,"rows_kept":39,"cut":false,"hidden":true,"merged":[[38,2,38,5],[18,2,20,2],[18,6,20,6],[21,2,27,2],[21,6,27,6],[33,2,35,2],[33,3,33,5],[35,3,35,5],[34,3,34,5],[28,1,28,2],[29,1,29,2],[30,1,30,2],[36,3,36,5],[37,3,37,5],[31,1,31,2],[32,1,32,2],[4,2,7,2],[4,6,7,6],[15,2,17,2],[8,2,14,2],[8,6,14,6],[15,6,17,6],[0,1,0,6],[2,0,3,0],[2,1,3,1],[2,2,3,2],[2,3,3,3],[2,4,3,4],[2,5,3,5],[2,6,3,6]]}
[]
[]
["الرقم","العدد","الصف ","الشعبة ","اسم  مربي الصف","عدد طلاب الشعبة","عدد الطلاب\n لكل مرحة "]
[1,1]
[1,1,"العاشر ","ا",null,{"$f":"Names!B3","v":0},{"$f":"SUM(F5:F8)","v":0}]
[2,2,null,"ب",null,{"$f":"Names!D3","v":0}]
[3,3,null,"ج",null,{"$f":"Names!F3","v":0}]
[4,4,null,"د",null,{"$f":"Names!H3","v":0}]
[5,1,"الحادي عشر\nالادبي","أ",null,{"$f":"Names!P3","v":0},{"$f":"SUM(F9:F15)","v":0}]
[6,2,null,"ب",null,{"$f":"Names!R3","v":0}]
[7,3,null,"ج",null,{"$f":"Names!T3","v":0}]
[8,4,null,"د",null,{"$f":"Names!V3","v":0}]
[9,5,null,"هـ",null,{"$f":"Names!X3","v":0}]
[10,6,null,"و",null,{"$f":"Names!Z3","v":0}]
[11,7,null,"ز",null,{"$f":"Names!AB3","v":0}]
[12,1,"الحادي عشر \nالعلمي","أ",null,{"$f":"Names!J3","v":0},{"$f":"SUM(F16:F18)","v":0}]
[13,2,null,"ب",null,{"$f":"Names!L3","v":0}]
[14,3,null,"ج",null,{"$f":"Names!N3","v":0}]
[15,1,"الثاني عشر\n العلمي","أ",null,{"$f":"Names!AD3","v":0},{"$f":"SUM(F19:F21)","v":0}]
[16,2,null,"ب",null,{"$f":"Names!AF3","v":0},null,{"$f":"G19+G22","v":59}]
[17,3,null,"ج",null,{"$f":"Names!AH3","v":0}]
[18,1,"الثاني عشر\n الادبي","أ",null,{"$f":"Names!AJ3","v":0},{"$f":"SUM(F22:F28)","v":59}]
[19,2,null,"ب",null,{"$f":"Names!AL3","v":0}]
[20,3,null,"ج",null,{"$f":"Names!AN3","v":0}]
[21,4,null,"د",null,{"$f":"Names!AP3","v":0}]
[22,5,null,"هـ",null,{"$f":"Names!AR3","v":0}]
[23,6,null,"و",null,{"$f":"Names!AT3","v":0}]
[24,7,null,"ز",null,{"$f":"Names!AV3","v":59}]
[null,"منزلي عاشر ",null,null,null,{"$f":"Names!AX3","v":3}]
[null,"منزلي حادي عشر الادبي"]
[null,"منزلي  حادي عشر العلمي",null,null,null,{"$f":"Names!BB3","v":59}]
[]
[]
[null,null,"الخلاصة ","عدد  طلاب المرحلة الاساسية ",null,null,{"$f":"G5","v":0}]
[null,null,null,"عدد  طلاب المرحلة الحادي عشر  ",null,null,{"$f":"G9+G16","v":0}]
[null,null,null,"عدد  طلاب المرحلة الثاني عشر  ",null,null,{"$f":"G19+G22","v":59}]
[null,null,null,"عدد الطلبة  المتسربون خلال العام السابق",null,null,{"$f":"SUM(F29:F31)","v":62}]
[null,null,null,"عدد الطلبة  للعام الحالي ",null,null,{"$f":"SUM(G5:G22)","v":59}]
[null,null,"المجموع النهائي لأعداد الطلبة  في المدرسة ",null,null,null,{"$f":"SUM(G37:G38)","v":121}]

{"sheet":"Names","index":1,"n_rows":62,"n_cols":68,"rows_kept":62,"cut":false,"hidden":false,"merged":[[0,56,2,56],[0,54,2,54],[0,48,2,48],[0,50,2,50],[0,52,2,52],[0,46,2,46],[0,40,2,40],[0,24,2,24],[0,26,2,26],[0,28,2,28],[0,30,2,30],[0,32,2,32],[0,44,2,44],[0,34,2,34],[0,36,2,36],[0,38,2,38],[0,42,2,42],[0,22,2,22],[0,0,2,0],[0,2,2,2],[0,4,2,4],[0,6,2,6],[0,8,2,8],[0,10,2,10],[0,12,2,12],[0,14,2,14],[0,16,2,16],[0,18,2,18],[0,20,2,20],[0,62,2,62],[0,64,2,64],[0,66,2,66],[0,60,2,60],[0,58,2,58]]}
["الرقم","العاشر أ","الرقم","العاشر ب","الرقم","العاشر ج","الرقم","العاشر د","الرقم","الحادي عشر العلمي أ","الرقم","الحادي عشر العلمي ب","الرقم","الحادي عشر العلمي ج","الرقم","الحادي عشر الادبي أ","الرقم","الحادي عشر الادبي ب","الرقم","الحادي عشر الادبي ج","الرقم","الحادي عشر الادبي د","الرقم","الحادي عشر الادبي هـ","الرقم","الحادي عشر الادبي و","الرقم","الحادي عشر الادبي ز","الرقم","الثاني عشر العلمي ا","الرقم","الثاني عشر العلمي ب","الرقم","الثاني عشر العلمي ج","الرقم","الثاني عشر الادبي أ","الرقم","الثاني عشر الادبي ب","الرقم","الثاني عشر الادبي ج","الرقم","الثاني عشر الادبي د ","الرقم","الثاني عشر الادبي هـ","الرقم","الثاني عشر الادبي و","الرقم","الثاني عشر الادبي ز","الرقم","منزلي عاشر ","الرقم","منزلي حادي عشر ادبي ","الرقم","منزلي حادي عشر علمي ","الرقم","منزلي ثاني عشر ادبي","الرقم","منزلي ثاني عشر علمي","الرقم","متسرب عاشر","الرقم","متسرب حادي عشر علمي","الرقم","متسرب حادي عشرادبي","الرقم","متسرب ثاني علمي","الرقم","متسرب ثاني ادبي"]
[null,"عدد طلاب الشعبة ",null,"عدد طلاب الشعبة ",null,"عدد طلاب الشعبة ",null,"عدد طلاب الشعبة ",null,"عدد طلاب الشعبة ",null,"عدد طلاب الشعبة ",null,"عدد طلاب الشعبة ",null,"عدد طلاب الشعبة ",null,"عدد طلاب الشعبة ",null,"عدد طلاب الشعبة ",null,"عدد طلاب الشعبة ",null,"عدد طلاب الشعبة ",null,"عدد طلاب الشعبة ",null,"عدد طلاب الشعبة ",null,"عدد طلاب الشعبة ",null,"عدد طلاب الشعبة ",null,"عدد طلاب الشعبة ",null,"عدد طلاب الشعبة ",null,"عدد طلاب الشعبة ",null,"عدد طلاب الشعبة ",null,"عدد طلاب الشعبة ",null,"عدد طلاب الشعبة ",null,"عدد طلاب الشعبة ",null,"عدد طلاب الشعبة ",null,"عدد طلاب الشعبة ",null,"عدد طلاب الشعبة ",null,"عدد طلاب الشعبة ",null,"عدد طلاب الشعبة ",null,"عدد طلاب الشعبة ",null,"عدد طلاب الشعبة ",null,"عدد طلاب الشعبة ",null,"عدد طلاب الشعبة ",null,"عدد طلاب الشعبة ",null,"عدد طلاب الشعبة "]
[null,{"$f":"COUNTA(B4:B64)","v":0},null,{"$f":"COUNTA(D4:D73)","v":0},null,{"$f":"COUNTA(F4:F71)","v":0},null,{"$f":"COUNTA(H4:H71)","v":0},null,{"$f":"COUNTA(J4:J71)","v":0},null,{"$f":"COUNTA(L4:L67)","v":0},null,{"$f":"COUNTA(N4:N68)","v":0},null,{"$f":"COUNTA(P4:P61)","v":0},null,{"$f":"COUNTA(R4:R68)","v":0},null,{"$f":"COUNTA(T4:T51)","v":0},null,{"$f":"COUNTA(V4:V67)","v":0},null,{"$f":"COUNTA(X4:X53)","v":0},null,{"$f":"COUNTA(Z4:Z55)","v":0},null,{"$f":"COUNTA(AB4:AB52)","v":0},null,{"$f":"COUNTA(AD4:AD64)","v":0},null,{"$f":"COUNTA(AF4:AF65)","v":0},null,{"$f":"COUNTA(AH4:AH61)","v":0},null,{"$f":"COUNTA(AJ4:AJ77)","v":0},null,{"$f":"COUNTA(AL4:AL66)","v":0},null,{"$f":"COUNTA(AN4:AN66)","v":0},null,{"$f":"COUNTA(AP4:AP61)","v":0},null,{"$f":"COUNTA(AR4:AR67)","v":0},null,{"$f":"COUNTA(AT4:AT66)","v":0},null,{"$f":"COUNTA(AV4:AV67)","v":59},null,{"$f":"COUNTA(AX4:AX77)","v":3},null,{"$f":"COUNTA(AZ4:AZ73)","v":58},null,{"$f":"COUNTA(BB4:BB68)","v":59},null,{"$f":"COUNTA(BD4:BD76)","v":7},null,{"$f":"COUNTA(BF4:BF78)","v":3},null,{"$f":"COUNTA(BH4:BH78)","v":10},null,{"$f":"COUNTA(BJ4:BJ78)","v":12},null,{"$f":"COUNTA(BL4:BL78)","v":10},null,{"$f":"COUNTA(BN4:BN78)","v":6},null,{"$f":"COUNTA(BP4:BP78)","v":8}]
[1,null,1,null,1,null,1,null,1,null,1,null,1,null,1,null,1,null,1,null,1,null,1,null,1,null,1,null,1,null,1,null,1,null,1,null,1,null,1,null,1,null,1,null,1,null,1,"س 1",1,"منزلي عاشر ",1,null,1,"منزلي حادي عشر علمي ",1,"منزلي ثاني عشر ادبي",1,"منزلي ثاني عشر علمي",1,"متسرب عاشر",1,"متسرب حادي عشر علمي",1,"متسرب حادي عشرادبي",1,"متسرب ثاني علمي",1,"م"]
[2,null,2,null,2,null,2,null,2,null,2,null,2,null,2,null,2,null,2,null,2,null,2,null,2,null,2,null,2,null,2,null,2,null,2,null,2,null,2,null,2,null,2,null,2,null,2,"س2",2,"منزلي عاشر ",2,"منزلي حادي عشر ادبي ",2,"منزلي حادي عشر علمي ",2,"منزلي ثاني عشر ادبي",2,"منزلي ثاني عشر علمي",2,"متسرب عاشر",2,"متسرب حادي عشر علمي",2,"متسرب حادي عشرادبي",2,"متسرب ثاني علمي",2,"م"]
[3,null,3,null,3,null,3,null,3,null,3,null,3,null,3,null,3,null,3,null,3,null,3,null,3,null,3,null,3,null,3,null,3,null,3,null,3,null,3,null,3,null,3,null,3,null,3,"س3",3,"منزلي عاشر ",3,"منزلي حادي عشر ادبي ",3,"منزلي حادي عشر علمي ",3,"منزلي ثاني عشر ادبي",3,"منزلي ثاني عشر علمي",3,"متسرب عاشر",3,"متسرب حادي عشر علمي",3,"متسرب حادي عشرادبي",3,"متسرب ثاني علمي",3,"م"]
[4,null,4,null,4,null,4,null,4,null,4,null,4,null,4,null,4,null,4,null,4,null,4,null,4,null,4,null,4,null,4,null,4,null,4,null,4,null,4,null,4,null,4,null,4,null,4,"س4",4,null,4,"منزلي حادي عشر ادبي ",4,"منزلي حادي عشر علمي ",4,"منزلي ثاني عشر ادبي",4,null,4,"متسرب عاشر",4,"متسرب حادي عشر علمي",4,"متسرب حادي عشرادبي",4,"متسرب ثاني علمي",4,"متسرب ثاني ادبي"]
[5,null,5,null,5,null,5,null,5,null,5,null,5,null,5,null,5,null,5,null,5,null,5,null,5,null,5,null,5,null,5,null,5,null,5,null,5,null,5,null,5,null,5,null,5,null,5,"س5",5,null,5,"منزلي حادي عشر ادبي ",5,"منزلي حادي عشر علمي ",5,"منزلي ثاني عشر ادبي",5,null,5,"متسرب عاشر",5,"متسرب حادي عشر علمي",5,"متسرب حادي عشرادبي",5,"متسرب ثاني علمي",5,"متسرب ثاني ادبي"]
[6,null,6,null,6,null,6,null,6,null,6,null,6,null,6,null,6,null,6,null,6,null,6,null,6,null,6,null,6,null,6,null,6,null,6,null,6,null,6,null,6,null,6,null,6,null,6,"س6",6,null,6,"منزلي حادي عشر ادبي ",6,"منزلي حادي عشر علمي ",6,"منزلي ثاني عشر ادبي",6,null,6,"متسرب عاشر",6,"متسرب حادي عشر علمي",6,"متسرب حادي عشرادبي",6,"متسرب ثاني علمي",6,"متسرب ثاني ادبي"]
[7,null,7,null,7,null,7,null,7,null,7,null,7,null,7,null,7,null,7,null,7,null,7,null,7,null,7,null,7,null,7,null,7,null,7,null,7,null,7,null,7,null,7,null,7,null,7,"س7",7,null,7,"منزلي حادي عشر ادبي ",7,"منزلي حادي عشر علمي ",7,"منزلي ثاني عشر ادبي",7,null,7,"متسرب عاشر",7,"متسرب حادي عشر علمي",7,"متسرب حادي عشرادبي",7,null,7,"متسرب ثاني ادبي"]
[8,null,8,null,8,null,8,null,8,null,8,null,8,null,8,null,8,null,8,null,8,null,8,null,8,null,8,null,8,null,8,null,8,null,8,null,8,null,8,null,8,null,8,null,8,null,8,"س8",8,null,8,"منزلي حادي عشر ادبي ",8,"منزلي حادي عشر علمي ",8,null,8,null,8,"متسرب عاشر",8,"متسرب حادي عشر علمي",8,"متسرب حادي عشرادبي",8,null,8,"متسرب ثاني ادبي"]
[9,null,9,null,9,null,9,null,9,null,9,null,9,null,9,null,9,null,9,null,9,null,9,null,9,null,9,null,9,null,9,null,9,null,9,null,9,null,9,null,9,null,9,null,9,null,9,"س9",9,null,9,"منزلي حادي عشر ادبي ",9,"منزلي حادي عشر علمي ",9,null,9,null,9,"متسرب عاشر",9,"متسرب حادي عشر علمي",9,"متسرب حادي عشرادبي",9,null,9]
[10,null,10,null,10,null,10,null,10,null,10,null,10,null,10,null,10,null,10,null,10,null,10,null,10,null,10,null,10,null,10,null,10,null,10,null,10,null,10,null,10,null,10,null,10,null,10,"س10",10,null,10,"منزلي حادي عشر ادبي ",10,"منزلي حادي عشر علمي ",10,null,10,null,10,"متسرب عاشر",10,"متسرب حادي عشر علمي",10,"متسرب حادي عشرادبي",10,null,10]
[11,null,11,null,11,null,11,null,11,null,11,null,11,null,11,null,11,null,11,null,11,null,11,null,11,null,11,null,11,null,11,null,11,null,11,null,11,null,11,null,11,null,11,null,11,null,11,"س11",11,null,11,"منزلي حادي عشر ادبي ",11,"منزلي حادي عشر علمي ",11,null,11,null,11,null,11,"متسرب حادي عشر علمي",11,null,11,null,11]
[12,null,12,null,12,null,12,null,12,null,12,null,12,null,12,null,12,null,12,null,12,null,12,null,12,null,12,null,12,null,12,null,12,null,12,null,12,null,12,null,12,null,12,null,12,null,12,"س12",12,null,12,"منزلي حادي عشر ادبي ",12,"منزلي حادي عشر علمي ",12,null,12,null,12,null,12,"متسرب حادي عشر علمي",12,null,12,null,12]
[13,null,13,null,13,null,13,null,13,null,13,null,13,null,13,null,13,null,13,null,13,null,13,null,13,null,13,null,13,null,13,null,13,null,13,null,13,null,13,null,13,null,13,null,13,null,13,"س13",13,null,13,"منزلي حادي عشر ادبي ",13,"منزلي حادي عشر علمي ",13,null,13,null,13,null,13,null,13,null,13,null,13]
[14,null,14,null,14,null,14,null,14,null,14,null,14,null,14,null,14,null,14,null,14,null,14,null,14,null,14,null,14,null,14,null,14,null,14,null,14,null,14,null,14,null,14,null,14,null,14,"س14",14,null,14,"منزلي حادي عشر ادبي ",14,"منزلي حادي عشر علمي ",14,null,14,null,14,null,14,null,14,null,14,null,14]
[15,null,15,null,15,null,15,null,15,null,15,null,15,null,15,null,15,null,15,null,15,null,15,null,15,null,15,null,15,null,15,null,15,null,15,null,15,null,15,null,15,null,15,null,15,null,15,"س15",15,null,15,"منزلي حادي عشر ادبي ",15,"منزلي حادي عشر علمي ",15,null,15,null,15,null,15,null,15,null,15,null,15]
[16,null,16,null,16,null,16,null,16,null,16,null,16,null,16,null,16,null,16,null,16,null,16,null,16,null,16,null,16,null,16,null,16,null,16,null,16,null,16,null,16,null,16,null,16,null,16,"س16",16,null,16,"منزلي حادي عشر ادبي ",16,"منزلي حادي عشر علمي ",16,null,16,null,16,null,16,null,16,null,16,null,16]
[17,null,17,null,17,null,17,null,17,null,17,null,17,null,17,null,17,null,17,null,17,null,17,null,17,null,17,null,17,null,17,null,17,null,17,null,17,null,17,null,17,null,17,null,17,null,17,"س17",17,null,17,"منزلي حادي عشر ادبي ",17,"منزلي حادي عشر علمي ",17,null,17,null,17,null,17,null,17,null,17,null,17]
[18,null,18,null,18,null,18,null,18,null,18,null,18,null,18,null,18,null,18,null,18,null,18,null,18,null,18,null,18,null,18,null,18,null,18,null,18,null,18,null,18,null,18,null,18,null,18,"س18",18,null,18,"منزلي حادي عشر ادبي ",18,"منزلي حادي عشر علمي ",18,null,18,null,18,null,18,null,18,null,18,null,18]
[19,null,19,null,19,null,19,null,19,null,19,null,19,null,19,null,19,null,19,null,19,null,19,null,19,null,19,null,19,null,19,null,19,null,19,null,19,null,19,null,19,null,19,null,19,null,19,"س19",19,null,19,"منزلي حادي عشر ادبي ",19,"منزلي حادي عشر علمي ",19,null,19,null,19,null,19,null,19,null,19,null,19]
[20,null,20,null,20,null,20,null,20,null,20,null,20,null,20,null,20,null,20,null,20,null,20,null,20,null,20,null,20,null,20,null,20,null,20,null,20,null,20,null,20,null,20,null,20,null,20,"س20",20,null,20,"منزلي حادي عشر ادبي ",20,"منزلي حادي عشر علمي ",20,null,20,null,20,null,20,null,20,null,20,null,20]
[21,null,21,null,21,null,21,null,21,null,21,null,21,null,21,null,21,null,21,null,21,null,21,null,21,null,21,null,21,null,21,null,21,null,21,null,21,null,21,null,21,null,21,null,21,null,21,"س21",21,null,21,"منزلي حادي عشر ادبي ",21,"منزلي حادي عشر علمي ",21,null,21,null,21,null,21,null,21,null,21,null,21]
[22,null,22,null,22,null,22,null,22,null,22,null,22,null,22,null,22,null,22,null,22,null,22,null,22,null,22,null,22,null,22,null,22,null,22,null,22,null,22,null,22,null,22,null,22,null,22,"س22",22,null,22,"منزلي حادي عشر ادبي ",22,"منزلي حادي عشر علمي ",22,null,22,null,22,null,22,null,22,null,22,null,22]
[23,null,23,null,23,null,23,null,23,null,23,null,23,null,23,null,23,null,23,null,23,null,23,null,23,null,23,null,23,null,23,null,23,null,23,null,23,null,23,null,23,null,23,null,23,null,23,"س23",23,null,23,"منزلي حادي عشر ادبي ",23,"منزلي حادي عشر علمي ",23,null,23,null,23,null,23,null,23,null,23,null,23]
[24,null,24,null,24,null,24,null,24,null,24,null,24,null,24,null,24,null,24,null,24,null,24,null,24,null,24,null,24,null,24,null,24,null,24,null,24,null,24,null,24,null,24,null,24,null,24,"س24",24,null,24,"منزلي حادي عشر ادبي ",24,"منزلي حادي عشر علمي ",24,null,24,null,24,null,24,null,24,null,24,null,24]
[25,null,25,null,25,null,25,null,25,null,25,null,25,null,25,null,25,null,25,null,25,null,25,null,25,null,25,null,25,null,25,null,25,null,25,null,25,null,25,null,25,null,25,null,25,null,25,"س25",25,null,25,"منزلي حادي عشر ادبي ",25,"منزلي حادي عشر علمي ",25,null,25,null,25,null,25,null,25,null,25,null,25]
[26,null,26,null,26,null,26,null,26,null,26,null,26,null,26,null,26,null,26,null,26,null,26,null,26,null,26,null,26,null,26,null,26,null,26,null,26,null,26,null,26,null,26,null,26,null,26,"س26",26,null,26,"منزلي حادي عشر ادبي ",26,"منزلي حادي عشر علمي ",26,null,26,null,26,null,26,null,26,null,26,null,26]
[27,null,27,null,27,null,27,null,27,null,27,null,27,null,27,null,27,null,27,null,27,null,27,null,27,null,27,null,27,null,27,null,27,null,27,null,27,null,27,null,27,null,27,null,27,null,27,"س27",27,null,27,"منزلي حادي عشر ادبي ",27,"منزلي حادي عشر علمي ",27,null,27,null,27,null,27,null,27,null,27,null,27]
[28,null,28,null,28,null,28,null,28,null,28,null,28,null,28,null,28,null,28,null,28,null,28,null,28,null,28,null,28,null,28,null,28,null,28,null,28,null,28,null,28,null,28,null,28,null,28,"س28",28,null,28,"منزلي حادي عشر ادبي ",28,"منزلي حادي عشر علمي ",28,null,28,null,28,null,28,null,28,null,28,null,28]
[29,null,29,null,29,null,29,null,29,null,29,null,29,null,29,null,29,null,29,null,29,null,29,null,29,null,29,null,29,null,29,null,29,null,29,null,29,null,29,null,29,null,29,null,29,null,29,"س29",29,null,29,"منزلي حادي عشر ادبي ",29,"منزلي حادي عشر علمي ",29,null,29,null,29,null,29,null,29,null,29,null,29]
[30,null,30,null,30,null,30,null,30,null,30,null,30,null,30,null,30,null,30,null,30,null,30,null,30,null,30,null,30,null,30,null,30,null,30,null,30,null,30,null,30,null,30,null,30,null,30,"س30",30,null,30,"منزلي حادي عشر ادبي ",30,"منزلي حادي عشر علمي ",30,null,30,null,30,null,30,null,30,null,30,null,30]
[31,null,31,null,31,null,31,null,31,null,31,null,31,null,31,null,31,null,31,null,31,null,31,null,31,null,31,null,31,null,31,null,31,null,31,null,31,null,31,null,31,null,31,null,31,null,31,"س31",31,null,31,"منزلي حادي عشر ادبي ",31,"منزلي حادي عشر علمي ",31,null,31,null,31,null,31,null,31,null,31,null,31]
[32,null,32,null,32,null,32,null,32,null,32,null,32,null,32,null,32,null,32,null,32,null,32,null,32,null,32,null,32,null,32,null,32,null,32,null,32,null,32,null,32,null,32,null,32,null,32,"س32",32,null,32,"منزلي حادي عشر ادبي ",32,"منزلي حادي عشر علمي ",32,null,32,null,32,null,32,null,32,null,32,null,32]
[33,null,33,null,33,null,33,null,33,null,33,null,33,null,33,null,33,null,33,null,33,null,33,null,33,null,33,null,33,null,33,null,33,null,33,null,33,null,33,null,33,null,33,null,33,null,33,"س33",33,null,33,"منزلي حادي عشر ادبي ",33,"منزلي حادي عشر علمي ",33,null,33,null,33,null,33,null,33,null,33,null,33]
[34,null,34,null,34,null,34,null,34,null,34,null,34,null,34,null,34,null,34,null,34,null,34,null,34,null,34,null,34,null,34,null,34,null,34,null,34,null,34,null,34,null,34,null,34,null,34,"س34",34,null,34,"منزلي حادي عشر ادبي ",34,"منزلي حادي عشر علمي ",34,null,34,null,34,null,34,null,34,null,34,null,34]
[35,null,35,null,35,null,35,null,35,null,35,null,35,null,35,null,35,null,35,null,35,null,35,null,35,null,35,null,35,null,35,null,35,null,35,null,35,null,35,null,35,null,35,null,35,null,35,"س35",35,null,35,"منزلي حادي عشر ادبي ",35,"منزلي حادي عشر علمي ",35,null,35,null,35,null,35,null,35,null,35,null,35]
[36,null,36,null,36,null,36,null,36,null,36,null,36,null,36,null,36,null,36,null,36,null,36,null,36,null,36,null,36,null,36,null,36,null,36,null,36,null,36,null,36,null,36,null,36,null,36,"س36",36,null,36,"منزلي حادي عشر ادبي ",36,"منزلي حادي عشر علمي ",36,null,36,null,36,null,36,null,36,null,36,null,36]
[37,null,37,null,37,null,37,null,37,null,37,null,37,null,37,null,37,null,37,null,37,null,37,null,37,null,37,null,37,null,37,null,37,null,37,null,37,null,37,null,37,null,37,null,37,null,37,"س37",37,null,37,"منزلي حادي عشر ادبي ",37,"منزلي حادي عشر علمي ",37,null,37,null,37,null,37,null,37,null,37,null,37]
[38,null,38,null,38,null,38,null,38,null,38,null,38,null,38,null,38,null,38,null,38,null,38,null,38,null,38,null,38,null,38,null,38,null,38,null,38,null,38,null,38,null,38,null,38,null,38,"س38",38,null,38,"منزلي حادي عشر ادبي ",38,"منزلي حادي عشر علمي ",38,null,38,null,38,null,38,null,38,null,38,null,38]
[39,null,39,null,39,null,39,null,39,null,39,null,39,null,39,null,39,null,39,null,39,null,39,null,39,null,39,null,39,null,39,null,39,null,39,null,39,null,39,null,39,null,39,null,39,null,39,"س39",39,null,39,"منزلي حادي عشر ادبي ",39,"منزلي حادي عشر علمي ",39,null,39,null,39,null,39,null,39,null,39,null,39]
[40,null,40,null,40,null,40,null,40,null,40,null,40,null,40,null,40,null,40,null,40,null,40,null,40,null,40,null,40,null,40,null,40,null,40,null,40,null,40,null,40,null,40,null,40,null,40,"س40",40,null,40,"منزلي حادي عشر ادبي ",40,"منزلي حادي عشر علمي ",40,null,40,null,40,null,40,null,40,null,40,null,40]
[41,null,41,null,41,null,41,null,41,null,41,null,41,null,41,null,41,null,41,null,41,null,41,null,41,null,41,null,41,null,41,null,41,null,41,null,41,null,41,null,41,null,41,null,41,null,41,"س41",41,null,41,"منزلي حادي عشر ادبي ",41,"منزلي حادي عشر علمي ",41,null,41,null,41,null,41,null,41,null,41,null,41]
[42,null,42,null,42,null,42,null,42,null,42,null,42,null,42,null,42,null,42,null,42,null,42,null,42,null,42,null,42,null,42,null,42,null,42,null,42,null,42,null,42,null,42,null,42,null,42,"س42",42,null,42,"منزلي حادي عشر ادبي ",42,"منزلي حادي عشر علمي ",42,null,42,null,42,null,42,null,42,null,42,null,42]
[43,null,43,null,43,null,43,null,43,null,43,null,43,null,43,null,43,null,43,null,43,null,43,null,43,null,43,null,43,null,43,null,43,null,43,null,43,null,43,null,43,null,43,null,43,null,43,"س43",43,null,43,"منزلي حادي عشر ادبي ",43,"منزلي حادي عشر علمي ",43,null,43,null,43,null,43,null,43,null,43,null,43]
[44,null,44,null,44,null,44,null,44,null,44,null,44,null,44,null,44,null,44,null,44,null,44,null,44,null,44,null,44,null,44,null,44,null,44,null,44,null,44,null,44,null,44,null,44,null,44,"س44",44,null,44,"منزلي حادي عشر ادبي ",44,"منزلي حادي عشر علمي ",44,null,44,null,44,null,44,null,44,null,44,null,44]
[45,null,45,null,45,null,45,null,45,null,45,null,45,null,45,null,45,null,45,null,45,null,45,null,45,null,45,null,45,null,45,null,45,null,45,null,45,null,45,null,45,null,45,null,45,null,45,"س45",45,null,45,"منزلي حادي عشر ادبي ",45,"منزلي حادي عشر علمي ",45,null,45,null,45,null,45,null,45,null,45,null,45]
[46,null,46,null,46,null,46,null,46,null,46,null,46,null,46,null,46,null,46,null,46,null,46,null,46,null,46,null,46,null,46,null,46,null,46,null,46,null,46,null,46,null,46,null,46,null,46,"س46",46,null,46,"منزلي حادي عشر ادبي ",46,"منزلي حادي عشر علمي ",46,null,46,null,46,null,46,null,46,null,46,null,46]
[47,null,47,null,47,null,47,null,47,null,47,null,47,null,47,null,47,null,47,null,47,null,47,null,47,null,47,null,47,null,47,null,47,null,47,null,47,null,47,null,47,null,47,null,47,null,47,"س47",47,null,47,"منزلي حادي عشر ادبي ",47,"منزلي حادي عشر علمي ",47,null,47,null,47,null,47,null,47,null,47,null,47]
[48,null,48,null,48,null,48,null,48,null,48,null,48,null,48,null,48,null,48,null,48,null,48,null,48,null,48,null,48,null,48,null,48,null,48,null,48,null,48,null,48,null,48,null,48,null,48,"س48",48,null,48,"منزلي حادي عشر ادبي ",48,"منزلي حادي عشر علمي ",48,null,48,null,48,null,48,null,48,null,48,null,48]
[49,null,49,null,49,null,49,null,49,null,49,null,49,null,49,null,49,null,49,null,49,null,49,null,49,null,49,null,49,null,49,null,49,null,49,null,49,null,49,null,49,null,49,null,49,null,49,"س49",49,null,49,"منزلي حادي عشر ادبي ",49,"منزلي حادي عشر علمي ",49,null,49,null,49,null,49,null,49,null,49,null,49]
[50,null,50,null,50,null,50,null,50,null,50,null,50,null,50,null,50,null,50,null,50,null,50,null,50,null,50,null,50,null,50,null,50,null,50,null,50,null,50,null,50,null,50,null,50,null,50,"س50",50,null,50,"منزلي حادي عشر ادبي ",50,"منزلي حادي عشر علمي ",50,null,50,null,50,null,50,null,50,null,50,null,50]
[51,null,51,null,51,null,51,null,51,null,51,null,51,null,51,null,51,null,51,null,51,null,51,null,51,null,51,null,51,null,51,null,51,null,51,null,51,null,51,null,51,null,51,null,51,null,51,"س51",51,null,51,"منزلي حادي عشر ادبي ",51,"منزلي حادي عشر علمي ",51,null,51,null,51,null,51,null,51,null,51,null,51]
[52,null,52,null,52,null,52,null,52,null,52,null,52,null,52,null,52,null,52,null,52,null,52,null,52,null,52,null,52,null,52,null,52,null,52,null,52,null,52,null,52,null,52,null,52,null,52,"س52",52,null,52,"منزلي حادي عشر ادبي ",52,"منزلي حادي عشر علمي ",52,null,52,null,52,null,52,null,52,null,52,null,52]
[53,null,53,null,53,null,53,null,53,null,53,null,53,null,53,null,53,null,53,null,53,null,53,null,53,null,53,null,53,null,53,null,53,null,53,null,53,null,53,null,53,null,53,null,53,null,53,"س53",53,null,53,"منزلي حادي عشر ادبي ",53,"منزلي حادي عشر علمي ",53,null,53,null,53,null,53,null,53,null,53,null,53]
[54,null,54,null,54,null,54,null,54,null,54,null,54,null,54,null,54,null,54,null,54,null,54,null,54,null,54,null,54,null,54,null,54,null,54,null,54,null,54,null,54,null,54,null,54,null,54,"س54",54,null,54,"منزلي حادي عشر ادبي ",54,"منزلي حادي عشر علمي ",54,null,54,null,54,null,54,null,54,null,54,null,54]
[55,null,55,null,55,null,55,null,55,null,55,null,55,null,55,null,55,null,55,null,55,null,55,null,55,null,55,null,55,null,55,null,55,null,55,null,55,null,55,null,55,null,55,null,55,null,55,"س55",55,null,55,"منزلي حادي عشر ادبي ",55,"منزلي حادي عشر علمي ",55,null,55,null,55,null,55,null,55,null,55,null,55]
[56,null,56,null,56,null,56,null,56,null,56,null,56,null,56,null,56,null,56,null,56,null,56,null,56,null,56,null,56,null,56,null,56,null,56,null,56,null,56,null,56,null,56,null,56,null,56,"س56",56,null,56,"منزلي حادي عشر ادبي ",56,"منزلي حادي عشر علمي ",56,null,56,null,56,null,56,null,56,null,56,null,56]
[57,null,57,null,57,null,57,null,57,null,57,null,57,null,57,null,57,null,57,null,57,null,57,null,57,null,57,null,57,null,57,null,57,null,57,null,57,null,57,null,57,null,57,null,57,null,57,"س57",57,null,57,"منزلي حادي عشر ادبي ",57,"منزلي حادي عشر علمي ",57,null,57,null,57,null,57,null,57,null,57,null,57]
[58,null,58,null,58,null,58,null,58,null,58,null,58,null,58,null,58,null,58,null,58,null,58,null,58,null,58,null,58,null,58,null,58,null,58,null,58,null,58,null,58,null,58,null,58,null,58,"س58",58,null,58,"منزلي حادي عشر ادبي ",58,"منزلي حادي عشر علمي ",58,null,58,null,58,null,58,null,58,null,58,null,58]
[null,null,null,null,null,null,59,null,59,null,59,null,59,null,59,null,59,null,59,null,59,null,59,null,59,null,59,null,59,null,59,null,59,null,59,null,59,null,59,null,59,null,59,null,59,null,59,"س59",59,null,59,"منزلي حادي عشر ادبي ",59,"منزلي حادي عشر علمي ",59,null,59,null,59,null,59,null,59,null,59,null,59]

{"sheet":"lists","index":2,"n_rows":29,"n_cols":6,"rows_kept":29,"cut":false,"hidden":false,"merged":[[1,6,3,6],[0,0,0,5],[1,2,1,3],[1,0,1,1],[2,0,2,1],[2,2,2,3],[1,4,1,5],[2,4,2,5]]}
["\nكشف أسماء الطلبة للعام 2022 / 2023"]
[" اســــــــــم مربــــــي الصــــــف :",null,{"$f":"IFERROR(VLOOKUP(E3,class,2,FALSE),\"\")","v":""},null,{"$f":"\" الصف:  \"&G1","v":" الصف:  "}]
["عــــــدد طلاب الشعبـــــــــــــــة :",null,{"$f":"COUNTA(B5:B29,D5:D29,F5:F25)","v":0}]
["رقم","الاسم","رقم","الاسم","رقم","الاسم"]
[1,null,26,null,51]
[2,null,27,null,52]
[3,null,28,null,53]
[4,null,29,null,54]
[5,null,30,null,55]
[6,null,31,null,56]
[7,null,32,null,57]
[8,null,33,null,58]
[9,null,34,null,59]
[10,null,35,null,60]
[11,null,36,null,61]
[12,null,37,null,62]
[13,null,38,null,63]
[14,null,39,null,64]
[15,null,40,null,65]
[16,null,41,null,66]
[17,null,42,null,67]
[18,null,43,null,68]
[19,null,44,null,69]
[20,null,45,null,70]
[21,null,46,null,71]
[22,null,47,null,72]
[23,null,48,null,73]
[24,null,49,null,74]
[25,null,50,null,75]

{"sheet":"المنقولين ","index":3,"n_rows":3,"n_cols":4,"rows_kept":3,"cut":false,"hidden":false,"merged":[]}
[]
[]
["الرقم","الاسم ","الصف و الشعبة ","تاريخ النقل "]

{"sheet":"ورقة1","index":4,"n_rows":34,"n_cols":1,"rows_kept":34,"cut":false,"hidden":true,"merged":[]}
["العاشر أ"]
["العاشر ب"]
["العاشر ج"]
["العاشر د"]
["الحادي عشر العلمي أ"]
["الحادي عشر العلمي ب"]
["الحادي عشر العلمي ج"]
["الحادي عشر الادبي أ"]
["الحادي عشر الادبي ب"]
["الحادي عشر الادبي ج"]
["الحادي عشر الادبي د"]
["الحادي عشر الادبي هـ"]
["الحادي عشر الادبي و"]
["الحادي عشر الادبي ز"]
["الثاني عشر الادبي أ"]
["الثاني عشر الادبي ب"]
["الثاني عشر الادبي ج"]
["الثاني عشر الادبي د "]
["الثاني عشر الادبي ز"]
["الثاني عشر الادبي هـ"]
["الثاني عشر الادبي و"]
["الثاني عشر العلمي ا"]
["الثاني عشر العلمي ب"]
["الثاني عشر العلمي ج"]
["منزلي عاشر "]
["منزلي حادي عشر ادبي "]
["منزلي حادي عشر علمي "]
["منزلي ثاني عشر ادبي"]
["منزلي ثاني عشر علمي "]
["متسرب عاشر"]
["متسرب حادي عشر علمي"]
["متسرب حادي عشرادبي"]
["متسرب ثاني علمي"]
["متسرب ثاني ادبي"]

{"sheet":"MS","index":5,"n_rows":213,"n_cols":3,"rows_kept":213,"cut":false,"hidden":false,"merged":[]}
[]
["ابراهيم وائل احمد الحيت","الحادي عشر الادبي ز","$AB$4"]
["احمد خالد سمير ابو الهوى","الحادي عشر الادبي ز","$AB$5"]
["احمد عبد الحليم محمد نزال","الحادي عشر الادبي ز","$AB$6"]
["احمد علي حسن الحداد","الحادي عشر الادبي ز","$AB$7"]
["احمد فضل محمد ابو حميده","الحادي عشر الادبي ز","$AB$8"]
["احمد مفيد عبد الهادي حسن","الحادي عشر الادبي ز","$AB$9"]
["انس إبراهيم إسماعيل خليفه","الحادي عشر الادبي ز","$AB$10"]
["انس محمود رمضان وهدان","الحادي عشر الادبي ز","$AB$11"]
["حازم محمد عدنان ابو حسين","الحادي عشر الادبي ز","$AB$12"]
["حمزة بشير عبد الغني عيون","الحادي عشر الادبي ز","$AB$13"]
["حمزه عماد محمد كعوش","الحادي عشر الادبي ز","$AB$14"]
["خالد بدر سالم الصناع","الحادي عشر الادبي ز","$AB$15"]
["زاهر عبد الاله رجب الصوفي","الحادي عشر الادبي ز","$AB$16"]
["زكريا محمد زكريا عبد الرحمن","الحادي عشر الادبي ز","$AB$17"]
["سلطان عماد محمد ابو شحيد","الحادي عشر الادبي ز","$AB$18"]
["عبد الرحمن اسامه غازي ابو خضره","الحادي عشر الادبي ز","$AB$19"]
["عبد الرحمن محمد حسن خزنه","الحادي عشر الادبي ز","$AB$20"]
["عبدالله حميدي بهجت البشايره","الحادي عشر الادبي ز","$AB$21"]
["عدي علاء اسماعيل الحداد","الحادي عشر الادبي ز","$AB$22"]
["عمار وائل سليمان الغول","الحادي عشر الادبي ز","$AB$23"]
["عمر بلال صالح محمد","الحادي عشر الادبي ز","$AB$24"]
["عمر محمد الخالد جوود","الحادي عشر الادبي ز","$AB$25"]
["فارس مامون غازي ابو خضرة","الحادي عشر الادبي ز","$AB$26"]
["س 1","الثاني عشر الادبي ز","$AV$4"]
["س2","الثاني عشر الادبي ز","$AV$5"]
["س3","الثاني عشر الادبي ز","$AV$6"]
["س4","الثاني عشر الادبي ز","$AV$7"]
["س5","الثاني عشر الادبي ز","$AV$8"]
["س6","الثاني عشر الادبي ز","$AV$9"]
["س7","الثاني عشر الادبي ز","$AV$10"]
["س8","الثاني عشر الادبي ز","$AV$11"]
["س9","الثاني عشر الادبي ز","$AV$12"]
["س10","الثاني عشر الادبي ز","$AV$13"]
["س11","الثاني عشر الادبي ز","$AV$14"]
["س12","الثاني عشر الادبي ز","$AV$15"]
["س13","الثاني عشر الادبي ز","$AV$16"]
["س14","الثاني عشر الادبي ز","$AV$17"]
["س15","الثاني عشر الادبي ز","$AV$18"]
["س16","الثاني عشر الادبي ز","$AV$19"]
["س17","الثاني عشر الادبي ز","$AV$20"]
["س18","الثاني عشر الادبي ز","$AV$21"]
["س19","الثاني عشر الادبي ز","$AV$22"]
["س20","الثاني عشر الادبي ز","$AV$23"]
["س21","الثاني عشر الادبي ز","$AV$24"]
["س22","الثاني عشر الادبي ز","$AV$25"]
["س23","الثاني عشر الادبي ز","$AV$26"]
["س24","الثاني عشر الادبي ز","$AV$27"]
["س25","الثاني عشر الادبي ز","$AV$28"]
["س26","الثاني عشر الادبي ز","$AV$29"]
["س27","الثاني عشر الادبي ز","$AV$30"]
["س28","الثاني عشر الادبي ز","$AV$31"]
["س29","الثاني عشر الادبي ز","$AV$32"]
["س30","الثاني عشر الادبي ز","$AV$33"]
["س31","الثاني عشر الادبي ز","$AV$34"]
["س32","الثاني عشر الادبي ز","$AV$35"]
["س33","الثاني عشر الادبي ز","$AV$36"]
["س34","الثاني عشر الادبي ز","$AV$37"]
["س35","الثاني عشر الادبي ز","$AV$38"]
["س36","الثاني عشر الادبي ز","$AV$39"]
["س37","الثاني عشر الادبي ز","$AV$40"]
["س38","الثاني عشر الادبي ز","$AV$41"]
["س39","الثاني عشر الادبي ز","$AV$42"]
["س40","الثاني عشر الادبي ز","$AV$43"]
["س41","الثاني عشر الادبي ز","$AV$44"]
["س42","الثاني عشر الادبي ز","$AV$45"]
["س43","الثاني عشر الادبي ز","$AV$46"]
["س44","الثاني عشر الادبي ز","$AV$47"]
["س45","الثاني عشر الادبي ز","$AV$48"]
["س46","الثاني عشر الادبي ز","$AV$49"]
["س47","الثاني عشر الادبي ز","$AV$50"]
["س48","الثاني عشر الادبي ز","$AV$51"]
["س49","الثاني عشر الادبي ز","$AV$52"]
["س50","الثاني عشر الادبي ز","$AV$53"]
["س51","الثاني عشر الادبي ز","$AV$54"]
["س52","الثاني عشر الادبي ز","$AV$55"]
["س53","الثاني عشر الادبي ز","$AV$56"]
["س54","الثاني عشر الادبي ز","$AV$57"]
["س55","الثاني عشر الادبي ز","$AV$58"]
["س56","الثاني عشر الادبي ز","$AV$59"]
["س57","الثاني عشر الادبي ز","$AV$60"]
["س58","الثاني عشر الادبي ز","$AV$61"]
["س59","الثاني عشر الادبي ز","$AV$62"]
["منزلي عاشر ","منزلي عاشر ","$AX$4"]
["منزلي عاشر ","منزلي عاشر ","$AX$5"]
["منزلي عاشر ","منزلي عاشر ","$AX$6"]
["منزلي حادي عشر ادبي ","منزلي حادي عشر ادبي ","$AZ$5"]
["منزلي حادي عشر ادبي ","منزلي حادي عشر ادبي ","$AZ$6"]
["منزلي حادي عشر ادبي ","منزلي حادي عشر ادبي ","$AZ$7"]
["منزلي حادي عشر ادبي ","منزلي حادي عشر ادبي ","$AZ$8"]
["منزلي حادي عشر ادبي ","منزلي حادي عشر ادبي ","$AZ$9"]
["منزلي حادي عشر ادبي ","منزلي حادي عشر ادبي ","$AZ$10"]
["منزلي حادي عشر ادبي ","منزلي حادي عشر ادبي ","$AZ$11"]
["منزلي حادي عشر ادبي ","منزلي حادي عشر ادبي ","$AZ$12"]
["منزلي حادي عشر ادبي ","منزلي حادي عشر ادبي ","$AZ$13"]
["منزلي حادي عشر ادبي ","منزلي حادي عشر ادبي ","$AZ$14"]
["منزلي حادي عشر ادبي ","منزلي حادي عشر ادبي ","$AZ$15"]
["منزلي حادي عشر ادبي ","منزلي حادي عشر ادبي ","$AZ$16"]
["منزلي حادي عشر ادبي ","منزلي حادي عشر ادبي ","$AZ$17"]
["منزلي حادي عشر ادبي ","منزلي حادي عشر ادبي ","$AZ$18"]
["منزلي حادي عشر ادبي ","منزلي حادي عشر ادبي ","$AZ$19"]
["منزلي حادي عشر ادبي ","منزلي حادي عشر ادبي ","$AZ$20"]
["منزلي حادي عشر ادبي ","منزلي حادي عشر ادبي ","$AZ$21"]
["منزلي حادي عشر ادبي ","منزلي حادي عشر ادبي ","$AZ$22"]
["منزلي حادي عشر ادبي ","منزلي حادي عشر ادبي ","$AZ$23"]
["منزلي حادي عشر ادبي ","منزلي حادي عشر ادبي ","$AZ$24"]
["منزلي حادي عشر ادبي ","منزلي حادي عشر ادبي ","$AZ$25"]
["منزلي حادي عشر ادبي ","منزلي حادي عشر ادبي ","$AZ$26"]
["منزلي حادي عشر ادبي ","منزلي حادي عشر ادبي ","$AZ$27"]
["منزلي حادي عشر ادبي ","منزلي حادي عشر ادبي ","$AZ$28"]
["منزلي حادي عشر ادبي ","منزلي حادي عشر ادبي ","$AZ$29"]
["منزلي حادي عشر ادبي ","منزلي حادي عشر ادبي ","$AZ$30"]
["منزلي حادي عشر ادبي ","منزلي حادي عشر ادبي ","$AZ$31"]
["منزلي حادي عشر ادبي ","منزلي حادي عشر ادبي ","$AZ$32"]
["منزلي حادي عشر ادبي ","منزلي حادي عشر ادبي ","$AZ$33"]
["منزلي حادي عشر ادبي ","منزلي حادي عشر ادبي ","$AZ$34"]
["منزلي حادي عشر ادبي ","منزلي حادي عشر ادبي ","$AZ$35"]
["منزلي حادي عشر ادبي ","منزلي حادي عشر ادبي ","$AZ$36"]
["منزلي حادي عشر ادبي ","منزلي حادي عشر ادبي ","$AZ$37"]
["منزلي حادي عشر ادبي ","منزلي حادي عشر ادبي ","$AZ$38"]
["منزلي حادي عشر ادبي ","منزلي حادي عشر ادبي ","$AZ$39"]
["منزلي حادي عشر ادبي ","منزلي حادي عشر ادبي ","$AZ$40"]
["منزلي حادي عشر ادبي ","منزلي حادي عشر ادبي ","$AZ$41"]
["منزلي حادي عشر ادبي ","منزلي حادي عشر ادبي ","$AZ$42"]
["منزلي حادي عشر ادبي ","منزلي حادي عشر ادبي ","$AZ$43"]
["منزلي حادي عشر ادبي ","منزلي حادي عشر ادبي ","$AZ$44"]
["منزلي حادي عشر ادبي ","منزلي حادي عشر ادبي ","$AZ$45"]
["منزلي حادي عشر ادبي ","منزلي حادي عشر ادبي ","$AZ$46"]
["منزلي حادي عشر ادبي ","منزلي حادي عشر ادبي ","$AZ$47"]
["منزلي حادي عشر ادبي ","منزلي حادي عشر ادبي ","$AZ$48"]
["منزلي حادي عشر ادبي ","منزلي حادي عشر ادبي ","$AZ$49"]
["منزلي حادي عشر ادبي ","منزلي حادي عشر ادبي ","$AZ$50"]
["منزلي حادي عشر ادبي ","منزلي حادي عشر ادبي ","$AZ$51"]
["منزلي حادي عشر ادبي ","منزلي حادي عشر ادبي ","$AZ$52"]
["منزلي حادي عشر ادبي ","منزلي حادي عشر ادبي ","$AZ$53"]
["منزلي حادي عشر ادبي ","منزلي حادي عشر ادبي ","$AZ$54"]
["منزلي حادي عشر ادبي ","منزلي حادي عشر ادبي ","$AZ$55"]
["منزلي حادي عشر ادبي ","منزلي حادي عشر ادبي ","$AZ$56"]
["منزلي حادي عشر ادبي ","منزلي حادي عشر ادبي ","$AZ$57"]
["منزلي حادي عشر ادبي ","منزلي حادي عشر ادبي ","$AZ$58"]
["منزلي حادي عشر ادبي ","منزلي حادي عشر ادبي ","$AZ$59"]
["منزلي حادي عشر ادبي ","منزلي حادي عشر ادبي ","$AZ$60"]
["منزلي حادي عشر ادبي ","منزلي حادي عشر ادبي ","$AZ$61"]
["منزلي حادي عشر ادبي ","منزلي حادي عشر ادبي ","$AZ$62"]
["منزلي حادي عشر علمي ","منزلي حادي عشر علمي ","$BB$4"]
["منزلي حادي عشر علمي ","منزلي حادي عشر علمي ","$BB$5"]
["منزلي حادي عشر علمي ","منزلي حادي عشر علمي ","$BB$6"]
["منزلي حادي عشر علمي ","منزلي حادي عشر علمي ","$BB$7"]
["منزلي حادي عشر علمي ","منزلي حادي عشر علمي ","$BB$8"]
["منزلي حادي عشر علمي ","منزلي حادي عشر علمي ","$BB$9"]
["منزلي حادي عشر علمي ","منزلي حادي عشر علمي ","$BB$10"]
["منزلي حادي عشر علمي ","منزلي حادي عشر علمي ","$BB$11"]
["منزلي حادي عشر علمي ","منزلي حادي عشر علمي ","$BB$12"]
["منزلي حادي عشر علمي ","منزلي حادي عشر علمي ","$BB$13"]
["منزلي حادي عشر علمي ","منزلي حادي عشر علمي ","$BB$14"]
["منزلي حادي عشر علمي ","منزلي حادي عشر علمي ","$BB$15"]
["منزلي حادي عشر علمي ","منزلي حادي عشر علمي ","$BB$16"]
["منزلي حادي عشر علمي ","منزلي حادي عشر علمي ","$BB$17"]
["منزلي حادي عشر علمي ","منزلي حادي عشر علمي ","$BB$18"]
["منزلي حادي عشر علمي ","منزلي حادي عشر علمي ","$BB$19"]
["منزلي حادي عشر علمي ","منزلي حادي عشر علمي ","$BB$20"]
["منزلي حادي عشر علمي ","منزلي حادي عشر علمي ","$BB$21"]
["منزلي حادي عشر علمي ","منزلي حادي عشر علمي ","$BB$22"]
["منزلي حادي عشر علمي ","منزلي حادي عشر علمي ","$BB$23"]
["منزلي حادي عشر علمي ","منزلي حادي عشر علمي ","$BB$24"]
["منزلي حادي عشر علمي ","منزلي حادي عشر علمي ","$BB$25"]
["منزلي حادي عشر علمي ","منزلي حادي عشر علمي ","$BB$26"]
["منزلي حادي عشر علمي ","منزلي حادي عشر علمي ","$BB$27"]
["منزلي حادي عشر علمي ","منزلي حادي عشر علمي ","$BB$28"]
["منزلي حادي عشر علمي ","منزلي حادي عشر علمي ","$BB$29"]
["منزلي حادي عشر علمي ","منزلي حادي عشر علمي ","$BB$30"]
["منزلي حادي عشر علمي ","منزلي حادي عشر علمي ","$BB$31"]
["منزلي حادي عشر علمي ","منزلي حادي عشر علمي ","$BB$32"]
["منزلي حادي عشر علمي ","منزلي حادي عشر علمي ","$BB$33"]
["منزلي حادي عشر علمي ","منزلي حادي عشر علمي ","$BB$34"]
["منزلي حادي عشر علمي ","منزلي حادي عشر علمي ","$BB$35"]
["منزلي حادي عشر علمي ","منزلي حادي عشر علمي ","$BB$36"]
["منزلي حادي عشر علمي ","منزلي حادي عشر علمي ","$BB$37"]
["منزلي حادي عشر علمي ","منزلي حادي عشر علمي ","$BB$38"]
["منزلي حادي عشر علمي ","منزلي حادي عشر علمي ","$BB$39"]
["منزلي حادي عشر علمي ","منزلي حادي عشر علمي ","$BB$40"]
["منزلي حادي عشر علمي ","منزلي حادي عشر علمي ","$BB$41"]
["منزلي حادي عشر علمي ","منزلي حادي عشر علمي ","$BB$42"]
["منزلي حادي عشر علمي ","منزلي حادي عشر علمي ","$BB$43"]
["منزلي حادي عشر علمي ","منزلي حادي عشر علمي ","$BB$44"]
["منزلي حادي عشر علمي ","منزلي حادي عشر علمي ","$BB$45"]
["منزلي حادي عشر علمي ","منزلي حادي عشر علمي ","$BB$46"]
["منزلي حادي عشر علمي ","منزلي حادي عشر علمي ","$BB$47"]
["منزلي حادي عشر علمي ","منزلي حادي عشر علمي ","$BB$48"]
["منزلي حادي عشر علمي ","منزلي حادي عشر علمي ","$BB$49"]
["منزلي حادي عشر علمي ","منزلي حادي عشر علمي ","$BB$50"]
["منزلي حادي عشر علمي ","منزلي حادي عشر علمي ","$BB$51"]
["منزلي حادي عشر علمي ","منزلي حادي عشر علمي ","$BB$52"]
["منزلي حادي عشر علمي ","منزلي حادي عشر علمي ","$BB$53"]
["منزلي حادي عشر علمي ","منزلي حادي عشر علمي ","$BB$54"]
["منزلي حادي عشر علمي ","منزلي حادي عشر علمي ","$BB$55"]
["منزلي حادي عشر علمي ","منزلي حادي عشر علمي ","$BB$56"]
["منزلي حادي عشر علمي ","منزلي حادي عشر علمي ","$BB$57"]
["منزلي حادي عشر علمي ","منزلي حادي عشر علمي ","$BB$58"]
["منزلي حادي عشر علمي ","منزلي حادي عشر علمي ","$BB$59"]
["منزلي حادي عشر علمي ","منزلي حادي عشر علمي ","$BB$60"]
["منزلي حادي عشر علمي ","منزلي حادي عشر علمي ","$BB$61"]
["منزلي حادي عشر علمي ","منزلي حادي عشر علمي ","$BB$62"]
["منزلي ثاني عشر ادبي","منزلي ثاني عشر ادبي","$BD$4"]
["منزلي ثاني عشر ادبي","منزلي ثاني عشر ادبي","$BD$5"]
["منزلي ثاني عشر ادبي","منزلي ثاني عشر ادبي","$BD$6"]
["منزلي ثاني عشر ادبي","منزلي ثاني عشر ادبي","$BD$7"]
["منزلي ثاني عشر ادبي","منزلي ثاني عشر ادبي","$BD$8"]
["منزلي ثاني عشر ادبي","منزلي ثاني عشر ادبي","$BD$9"]
["منزلي ثاني عشر ادبي","منزلي ثاني عشر ادبي","$BD$10"]
["منزلي ثاني عشر علمي","منزلي ثاني عشر علمي","$BF$4"]
["منزلي ثاني عشر علمي","منزلي ثاني عشر علمي","$BF$5"]
["منزلي ثاني عشر علمي","منزلي ثاني عشر علمي","$BF$6"]

{"sheet":"ورقة3","index":6,"n_rows":0,"n_cols":0,"rows_kept":0,"cut":false,"hidden":false,"merged":[]}